Workbook

Sheet Start
B1: OVER DEZE SJABLOON
B2: Gebruik deze werkmap om de onkosten en inkomsten van een evenement bij te houden.
B3: Voer de naam van het evenement in en voer alle gegevens in op de werkbladen Onkosten en Inkomsten.
B4: De totale onkosten en totale inkomsten worden automatisch berekend.
B5: De winst-en-verliesrekening en de bijbehorende grafiek worden automatisch bijgewerkt op het werkblad Winst-en-verliesrekening.
B6: Opmerking:
B7: Kolom A van elk werkblad bevat aanvullende instructies. Deze tekst is opzettelijk verborgen. Als u tekst wilt verwijderen, selecteert u kolom A en drukt u op DELETE.
B8: Als u meer wilt weten over tabellen, drukt u in een tabel op Shift en F10, selecteert u de optie TABEL en vervolgens VERVANGENDE TEKST

Sheet Onkosten
A1: Voer de geschatte en werkelijke onkosten voor elke categorie in in de desbetreffende tabellen op dit werkblad. Voer in cel D1 de naam van het evenement in om de titels van alle werkbladen aan te passen. De subtitel van dit werkblad staat in cel H1. Cellen in deze kolom bevatten handige instructies voor het gebruik van dit werkblad. De volgende aanwijzing staat in cel A3. | B1: Budget van evenement voor | D1: Naam van evenement | H1: ONKOSTEN
A3: Het label Totale onkosten staat in de cel rechts, het label Geschat in cel G3 en het label Werkelijk in cel H3. | B3: TOTALE ONKOSTEN | G3: Geschat | H3: Werkelijk
A4: De totale geschatte onkosten in cel G4 en de totale werkelijke onkosten in cel H4 worden automatisch berekend. De volgende aanwijzing staat in cel A6. | G4: =SUM(C11,C19,C25,C32,G11,G19,G24) -> € 882.00 | H4: =SUM(D11,D19,D25,D32,H11,H19,H24) -> € 302.00
A6: Voer de onkosten voor de locatie in in de tabel die in de cel rechts begint, en de onkosten voor hapjes en drankjes in de tabel die in cel F6 begint. De volgende aanwijzing staat in cel A13. | B6: Locatie | C6: Geschat | D6: Werkelijk | F6: Hapjes en drankjes | G6: Geschat | H6: Werkelijk
B7: Kamer- en zaalkosten | C7: € 500.00 | F7: Eten en drinken
B8: Personeel op locatie | F8: Drinken | G8: € 20.00
B9: Apparatuur | F9: Linnengoed | H9: € 20.00
B10: Tafels en stoelen | F10: Personeel en fooien
B11: Totaal | C11: =SUBTOTAL(109,SiteExpenses[Geschat]) -> € 500.00 | D11: =SUBTOTAL(103,SiteExpenses[Werkelijk]) -> € 0.00 | F11: Totaal | G11: =SUBTOTAL(109,RefreshmentsExpenses[Geschat]) -> € 20.00 | H11: =SUBTOTAL(103,RefreshmentsExpenses[Werkelijk]) -> € 1.00
A13: Voer de onkosten voor versieringen in in de tabel die in de cel rechts begint, en de onkosten voor het programma in de tabel die in cel F13 begint. De volgende aanwijzing staat in cel A21. | B13: Versieringen | C13: Geschat | D13: Werkelijk | F13: Programma | G13: Geschat | H13: Werkelijk
B14: Bloemen | C14: € 200.00 | D14: € 300.00 | F14: Artiesten
B15: Kaarsen | F15: Sprekers | G15: € 30.00
B16: Verlichting | F16: Reis
B17: Ballonnen | F17: Hotel
B18: Papier | F18: Anders
B19: Totaal | C19: =SUBTOTAL(109,DecorationsExpenses[Geschat]) -> € 200.00 | D19: =SUBTOTAL(109,DecorationsExpenses[Werkelijk]) -> € 300.00 | F19: Totaal | G19: =SUBTOTAL(109,ProgramExpenses[Geschat]) -> € 30.00 | H19: =SUBTOTAL(103,ProgramExpenses[Werkelijk]) -> € 0.00
A21: Voer de onkosten voor marketing in in de tabel die in de cel rechts begint, en de onkosten voor prijzen in de tabel die in cel F21 begint. De volgende aanwijzing staat in cel A27. | B21: Publiciteit | C21: Geschat | D21: Werkelijk | F21: Prijzen | G21: Geschat | H21: Werkelijk
B22: Grafisch ontwerp | F22: Lintjes/medailles/trofeeën
B23: Kopiëren/drukken | C23: € 20.00 | F23: Cadeaus | G23: € 100.00
B24: Portokosten | F24: Totaal | G24: =SUBTOTAL(109,PrizesExpenses[Geschat]) -> € 100.00 | H24: =SUBTOTAL(103,PrizesExpenses[Werkelijk]) -> € 0.00
B25: Totaal | C25: =SUBTOTAL(109,PublicityExpenses[Geschat]) -> € 20.00 | D25: =SUBTOTAL(103,PublicityExpenses[Werkelijk]) -> € 0.00
A27: Voer overige onkosten in in de tabel die in de cel rechts begint. | B27: Diversen | C27: Geschat | D27: Werkelijk
B28: Telefoon | D28: € 13.00
B29: Vervoer | C29: € 12.00
B30: Kantoorbenodigdheden
B31: Faxkosten
B32: Totaal | C32: =SUBTOTAL(109,MiscellaneousExpenses[Geschat]) -> € 12.00 | D32: =SUBTOTAL(103,MiscellaneousExpenses[Werkelijk]) -> € 1.00

Sheet Inkomsten
A1: Voer geschatte en werkelijke inkomsten in voor elke categorie in de desbetreffende tabellen in dit werkblad. De titel van dit werkblad wordt automatisch bijgewerkt in de cellen rechts. De subtitel staat in cel G1. Cellen in deze kolom bevatten handige instructies voor het gebruik van dit werkblad. De volgende aanwijzing staat in cel A3. | B1: =Onkosten!B1 -> Budget van evenement voor | D1: =Onkosten!D1 -> Naam van evenement | G1: INKOMSTEN
A3: Het label Totale inkomsten staat in de cel rechts, het label Geschat in cel F3 en het label Werkelijk in cel G3. | B3: TOTALE INKOMSTEN | F3: Geschat | G3: Werkelijk
A4: De totale geschatte inkomsten worden automatisch berekend in cel F4, en de totale werkelijke inkomsten in cel G4. | F4: =SUM(Toegangsbewijzen[[#Totals],[Geschatte inkomsten]],AdvertentiesInProgrammaboekje[[#Totals],[Geschatte inkomsten]],ExhibitorsAndVendors[[#Totals],[Geschatte inkomsten]],VerkoopVanArtikelen[[#Totals],[Geschatte inkomsten]]) -> € 1,936.00 | G4: =SUM(Toegangsbewijzen[[#Totals],[Werkelijke inkomsten]],AdvertentiesInProgrammaboekje[[#Totals],[Werkelijke inkomsten]],ExhibitorsAndVendors[[#Totals],[Werkelijke inkomsten]],VerkoopVanArtikelen[[#Totals],[Werkelijke inkomsten]]) -> € 1,831.00
A5: Het label Toegangsbewijzen staat in de cel rechts. | B5: TOEGANGSBEWIJZEN
A6: Voer het geschatte en werkelijke aantal verkochte toegangsbewijzen en de bijbehorende prijzen in in de tabel die in de cel rechts begint. De geschatte en werkelijke inkomsten uit verkochte toegangsbewijzen worden automatisch berekend. De volgende aanwijzing staat in cel A11. | B6: Geschat aantal | C6: Werkelijk aantal | D6: Type | E6: Prijs | F6: Geschatte inkomsten | G6: Werkelijke inkomsten
B7: 300 | C7: 278 | D7: Volwassenen à | E7: € 5.00 | F7: =B7*E7 -> € 1,500.00 | G7: =C7*E7 -> € 1,390.00
B8: 197 | C8: 195 | D8: Kinderen à | E8: € 2.00 | F8: =B8*E8 -> € 394.00 | G8: =C8*E8 -> € 390.00
B9: 42 | C9: 51 | D9: Andere à | E9: € 1.00 | F9: =B9*E9 -> € 42.00 | G9: =C9*E9 -> € 51.00
B10: Totaal | F10: =SUBTOTAL(109,Toegangsbewijzen[Geschatte inkomsten]) -> € 1,936.00 | G10: =SUBTOTAL(109,Toegangsbewijzen[Werkelijke inkomsten]) -> € 1,831.00
A11: Het label Advertenties in programmaboekje staat in de cel rechts. | B11: ADVERTENTIES IN PROGRAMMABOEKJE
A12: Voer het geschatte en werkelijke aantal verkochte advertenties in het programmaboekje en de bijbehorende advertentietarieven in in de tabel die in de cel rechts begint. De geschatte en werkelijke inkomsten uit advertenties worden automatisch berekend. De volgende aanwijzing staat in cel A17. | B12: Geschat aantal | C12: Werkelijk aantal | D12: Type | E12: Prijs | F12: Geschatte inkomsten | G12: Werkelijke inkomsten
B13: 12 | D13: Volledige pagina à | F13: =B13*E13 -> € 0.00 | G13: =C13*E13 -> € 0.00
C14: 158 | D14: Halve pagina à | F14: =B14*E14 -> € 0.00 | G14: =C14*E14 -> € 0.00
B15: 4 | D15: Kwart pagina à | F15: =B15*E15 -> € 0.00 | G15: =C15*E15 -> € 0.00
B16: Totaal | F16: =SUBTOTAL(109,AdvertentiesInProgrammaboekje[Geschatte inkomsten]) -> € 0.00 | G16: =SUBTOTAL(109,AdvertentiesInProgrammaboekje[Werkelijke inkomsten]) -> € 0.00
A17: Het label Exposanten of verkopers staat in de cel rechts. | B17: EXPOSANTEN/VERKOPERS
A18: Voer het geschatte en werkelijke aantal exposanten en verkopers en de bijbehorende standprijzen in in de tabel die in de cel rechts begint. De geschatte en werkelijke inkomsten worden automatisch berekend. De volgende aanwijzing staat in cel A23. | B18: Geschat aantal | C18: Werkelijk aantal | D18: Type | E18: Prijs | F18: Geschatte inkomsten | G18: Werkelijke inkomsten
B19: 23 | D19: Grote stands à | F19: =B19*E19 -> € 0.00 | G19: =C19*E19 -> € 0.00
B20: 354 | D20: Middelgrote stands à | F20: =B20*E20 -> € 0.00 | G20: =C20*E20 -> € 0.00
B21: 56 | D21: Kleine stands à | F21: =B21*E21 -> € 0.00 | G21: =C21*E21 -> € 0.00
B22: Totaal | F22: =SUBTOTAL(109,ExhibitorsAndVendors[Geschatte inkomsten]) -> € 0.00 | G22: =SUBTOTAL(109,ExhibitorsAndVendors[Werkelijke inkomsten]) -> € 0.00
A23: Het label Verkoop van artikelen staat in de cel rechts. | B23: VERKOOP VAN ARTIKELEN
A24: Voer het geschatte en werkelijke aantal verkochte artikelen en de bijbehorende artikelprijzen in in de tabel die in de cel rechts begint. De geschatte en werkelijke inkomsten worden automatisch berekend. | B24: Geschat aantal | C24: Werkelijk aantal | D24: Type | E24: Prijs | F24: Geschatte inkomsten | G24: Werkelijke inkomsten
D25: Items à | F25: =B25*E25 -> € 0.00 | G25: =C25*E25 -> € 0.00
B26: 123 | D26: Items à | F26: =B26*E26 -> € 0.00 | G26: =C26*E26 -> € 0.00
D27: Items à | F27: =B27*E27 -> € 0.00 | G27: =C27*E27 -> € 0.00
B28: 13 | D28: Items à | F28: =B28*E28 -> € 0.00 | G28: =C28*E28 -> € 0.00
B29: Totaal | F29: =SUBTOTAL(109,VerkoopVanArtikelen[Geschatte inkomsten]) -> € 0.00 | G29: =SUBTOTAL(109,VerkoopVanArtikelen[Werkelijke inkomsten]) -> € 0.00

Sheet Winst-en-verliesrekening
A1: De winst-en-verliesrekening en de bijbehorende grafiek waarin de totale uitgaven onkosten worden weergegeven, worden automatisch bijgewerkt op dit werkblad. De titel van dit werkblad wordt automatisch bijgewerkt in de cellen rechts. De subtitel staat in cel G1 en G2. Cellen in deze kolom bevatten handige instructies voor het gebruik van dit werkblad. De volgende aanwijzing staat in cel A3. | B1: =Onkosten!B1 -> Budget van evenement voor | D1: =Onkosten!D1 -> Naam van evenement | G1: WINST
G2: Verliesrekening
A3: In cel E3 bevindt zich een staafdiagram waarin de geschatte inkomsten en onkosten en de werkelijke inkomsten en onkosten naast elkaar worden weergegeven. | E3: In deze cel bevindt zich een staafdiagram met de geschatte inkomsten en onkosten en een vergelijking van werkelijke inkomsten en onkosten.
A4: De tabel Overzicht die in de cel rechts begint, wordt automatisch bijgewerkt. De volgende aanwijzing staat in cel A8. | B4: Totaal | C4: Geschat | D4: Werkelijk
B5: Totale inkomsten | C5: =Inkomsten!F10 -> € 1,936.00 | D5: =Inkomsten!F4 -> € 1,936.00
B6: Totale onkosten | C6: =Onkosten!G4 -> € 882.00 | D6: =Onkosten!H4 -> € 302.00
A8: De geschatte totale winst of het geschatte totale verlies wordt automatisch berekend in cel C8, en de werkelijke totale winst of het werkelijke totale verlies in cel D8. | B8: Totale winst (of verlies) | C8: =C5-C6 -> € 1,054.00 | D8: =D5-D6 -> € 1,634.00
